[Event "*** Titled Tuesday Blitz"]
[Site "Chess.com"]
[Date "2020.05.12"]
[Round "2"]
[White "nabukatnezarr"]
[Black "Gordima"]
[Result "0-1"]
[WhiteElo "2507"]
[BlackElo "2766"]
[TimeControl "180+1"]
[EndTime "10:19:08 PDT"]
[Termination "Gordima won by resignation"]

1. d4 {[%clk 0:03:00.9]} 1... d5 {[%clk 0:02:59]} 2. c4 {[%clk 0:02:57.7]} 2...
e6 {[%clk 0:02:58.6]} 3. Nc3 {[%clk 0:02:57.2]} 3... Bb4 {[%clk 0:02:59]} 4. Qc2
{[%clk 0:02:52.9]} 4... dxc4 {[%clk 0:02:58.3]} 5. Nf3 {[%clk 0:02:50.8]} 5...
b5 {[%clk 0:02:51.9]} 6. e4 {[%clk 0:02:46.4]} 6... Bb7 {[%clk 0:02:48.6]} 7.
Be2 {[%clk 0:02:44.4]} 7... Nf6 {[%clk 0:02:44.9]} 8. e5 {[%clk 0:02:44.4]} 8...
Nd5 {[%clk 0:02:40.8]} 9. O-O {[%clk 0:02:44.2]} 9... a6 {[%clk 0:02:37.1]} 10.
Ne4 {[%clk 0:02:43.5]} 10... Nd7 {[%clk 0:02:36.6]} 11. b3 {[%clk 0:02:38.2]}
11... cxb3 {[%clk 0:02:33.8]} 12. axb3 {[%clk 0:02:39.1]} 12... Be7 {[%clk
0:02:31.4]} 13. Bg5 {[%clk 0:02:37.4]} 13... Nb4 {[%clk 0:02:11.7]} 14. Qb1
{[%clk 0:02:36.4]} 14... h6 {[%clk 0:02:03.1]} 15. Bxe7 {[%clk 0:02:32.6]} 15...
Qxe7 {[%clk 0:02:04]} 16. Rc1 {[%clk 0:02:31.9]} 16... Rc8 {[%clk 0:02:03.3]}
17. h4 {[%clk 0:02:13.8]} 17... Nd5 {[%clk 0:01:52.9]} 18. Bd1 {[%clk
0:02:01.8]} 18... O-O {[%clk 0:01:47.3]} 19. Qd3 {[%clk 0:02:01.3]} 19... Rfd8
{[%clk 0:01:43.7]} 20. g4 {[%clk 0:01:41.1]} 20... f6 {[%clk 0:01:32.9]} 21.
exf6 {[%clk 0:01:36.1]} 21... N5xf6 {[%clk 0:01:24.2]} 22. Nxf6+ {[%clk
0:01:22.8]} 22... Qxf6 {[%clk 0:01:09.6]} 23. g5 {[%clk 0:01:07.9]} 23... Qf4
{[%clk 0:01:01.8]} 24. gxh6 {[%clk 0:00:28.6]} 24... Rf8 {[%clk 0:00:38.5]} 25.
Qg6 {[%clk 0:00:14.9]} 25... Qxh6 {[%clk 0:00:31.8]} 26. Qxh6 {[%clk 0:00:11.3]}
26... gxh6 {[%clk 0:00:32.7]} 27. Ne5 {[%clk 0:00:09.8]} 27... Nxe5 {[%clk
0:00:32.8]} 28. dxe5 {[%clk 0:00:10.7]} 28... Rf4 {[%clk 0:00:31.6]} 29. Rc5
{[%clk 0:00:06.2]} 29... Bd5 {[%clk 0:00:22.2]} 30. Rac1 {[%clk 0:00:05.4]}
30... c6 {[%clk 0:00:21.9]} 31. R5c3 {[%clk 0:00:02.9]} 31... Rcf8 {[%clk
0:00:20.1]} 32. Rg3+ {[%clk 0:00:03.8]} 32... Kh8 {[%clk 0:00:20.2]} 33. f3
{[%clk 0:00:03.3]} 33... Rxh4 {[%clk 0:00:20.2]} 34. Kf2 {[%clk 0:00:02.5]}
34... Rh5 {[%clk 0:00:16.6]} 35. Ke3 {[%clk 0:00:03]} 35... Rxe5+ {[%clk
0:00:16.6]} 36. Kd4 {[%clk 0:00:03.9]} 36... Rg5 {[%clk 0:00:16.9]} 37. Rxg5
{[%clk 0:00:03.4]} 37... hxg5 {[%clk 0:00:17.8]} 38. Ke5 {[%clk 0:00:04.2]}
38... Kg7 {[%clk 0:00:16]} 39. Be2 {[%clk 0:00:04.8]} 39... Rf5+ {[%clk
0:00:12.8]} 40. Kd6 {[%clk 0:00:05.4]} 40... Kf6 {[%clk 0:00:13]} 41. Rh1 {[%clk
0:00:04.9]} 41... Rf4 {[%clk 0:00:12.5]} 42. Rh6+ {[%clk 0:00:04.9]} 42... Kg7
{[%clk 0:00:13.1]} 43. Rh3 {[%clk 0:00:04.1]} 43... Rb4 {[%clk 0:00:12.6]} 44.
Rg3 {[%clk 0:00:03.7]} 44... Kf6 {[%clk 0:00:13.1]} 45. Rg1 {[%clk 0:00:03.2]}
45... Rxb3 {[%clk 0:00:13.3]} 46. Rf1 {[%clk 0:00:03.8]} 46... a5 {[%clk
0:00:12.8]} 47. f4 {[%clk 0:00:04.2]} 47... a4 {[%clk 0:00:11.2]} 48. fxg5+
{[%clk 0:00:04.4]} 48... Kxg5 {[%clk 0:00:12.1]} 49. Rg1+ {[%clk 0:00:05.2]}
49... Kf4 {[%clk 0:00:12]} 50. Rf1+ {[%clk 0:00:05.4]} 50... Ke3 {[%clk
0:00:12.2]} 51. Bg4 {[%clk 0:00:06.1]} 51... Kd4 {[%clk 0:00:12]} 52. Rd1+
{[%clk 0:00:05.7]} 52... Kc3 {[%clk 0:00:11.6]} 53. Bxe6 {[%clk 0:00:04.8]}
53... Bxe6 {[%clk 0:00:11.8]} 54. Kxe6 {[%clk 0:00:05.7]} 54... a3 {[%clk
0:00:11.9]} 55. Kd6 {[%clk 0:00:06.3]} 55... Kb2 {[%clk 0:00:12]} 56. Kxc6
{[%clk 0:00:06.5]} 56... a2 {[%clk 0:00:12.2]} 57. Rd2+ {[%clk 0:00:06.1]} 57...
Ka3 {[%clk 0:00:12.7]} 58. Rd1 {[%clk 0:00:05.7]} 58... Rb1 {[%clk 0:00:12.6]}
59. Rd3+ {[%clk 0:00:05.9]} 59... Kb4 {[%clk 0:00:12.3]} 60. Rd4+ {[%clk
0:00:05.4]} 60... Kc3 {[%clk 0:00:12.7]} 0-1

[Event "*** Titled Tuesday Blitz"]
[Site "Chess.com"]
[Date "2020.05.12"]
[Round "2"]
[White "ChessQueen"]
[Black "r31415"]
[Result "1-0"]
[WhiteElo "2633"]
[BlackElo "2320"]
[TimeControl "180+1"]
[EndTime "10:19:08 PDT"]
[Termination "ChessQueen won by resignation"]

1. e4 {[%clk 0:03:00.9]} 1... d6 {[%clk 0:03:00.4]} 2. d4 {[%clk 0:03:00.2]}
2... Nf6 {[%clk 0:03:01.3]} 3. Nc3 {[%clk 0:03:00.1]} 3... g6 {[%clk 0:03:01.9]}
4. Be3 {[%clk 0:02:57.1]} 4... c6 {[%clk 0:03:01.7]} 5. a4 {[%clk 0:02:53.1]}
5... Nbd7 {[%clk 0:02:58.2]} 6. Nf3 {[%clk 0:02:50.1]} 6... Qc7 {[%clk
0:02:57.6]} 7. Bd3 {[%clk 0:02:41.6]} 7... Bg7 {[%clk 0:02:56.9]} 8. O-O {[%clk
0:02:41.2]} 8... O-O {[%clk 0:02:56.8]} 9. h3 {[%clk 0:02:41.4]} 9... e5 {[%clk
0:02:56.9]} 10. Re1 {[%clk 0:02:41.4]} 10... b6 {[%clk 0:02:53.8]} 11. Qd2
{[%clk 0:02:40.2]} 11... Bb7 {[%clk 0:02:53.4]} 12. Bh6 {[%clk 0:02:37.2]} 12...
Rfe8 {[%clk 0:02:50.5]} 13. Bxg7 {[%clk 0:02:35.9]} 13... Kxg7 {[%clk
0:02:51.4]} 14. Rad1 {[%clk 0:02:30.2]} 14... Rad8 {[%clk 0:02:48.3]} 15. Bc4
{[%clk 0:02:17.7]} 15... h6 {[%clk 0:02:46.9]} 16. Ba2 {[%clk 0:02:11.9]} 16...
Re7 {[%clk 0:02:31.1]} 17. Qd3 {[%clk 0:02:09.9]} 17... Rde8 {[%clk 0:02:29.4]}
18. Qc4 {[%clk 0:01:47.5]} 18... Qb8 {[%clk 0:02:17.8]} 19. dxe5 {[%clk
0:01:46.5]} 19... Nxe5 {[%clk 0:02:10.7]} 20. Nxe5 {[%clk 0:01:46.3]} 20... dxe5
{[%clk 0:02:10.6]} 21. Rd3 {[%clk 0:01:44]} 21... Qc8 {[%clk 0:02:03.1]} 22. Rd6
{[%clk 0:01:33.1]} 22... Rd7 {[%clk 0:01:50.6]} 23. Rxd7 {[%clk 0:01:28.4]}
23... Qxd7 {[%clk 0:01:50.8]} 24. Rd1 {[%clk 0:01:29]} 24... Qe7 {[%clk
0:01:49.9]} 25. Qd3 {[%clk 0:01:26.3]} 25... Bc8 {[%clk 0:01:36.2]} 26. Qd6
{[%clk 0:01:23.6]} 26... Be6 {[%clk 0:01:18.5]} 27. f3 {[%clk 0:01:09.1]} 27...
Bxa2 {[%clk 0:01:05.4]} 28. Nxa2 {[%clk 0:01:10]} 28... Qe6 {[%clk 0:01:03.7]}
29. Qxe6 {[%clk 0:01:06.1]} 29... Rxe6 {[%clk 0:01:03.1]} 30. Rd8 {[%clk
0:01:04.8]} 30... Re8 {[%clk 0:00:38.9]} 31. Rd6 {[%clk 0:01:04.6]} 31... Re6
{[%clk 0:00:39]} 32. Rxe6 {[%clk 0:01:04.7]} 32... fxe6 {[%clk 0:00:39]} 33. Nb4
{[%clk 0:01:04.6]} 33... Nd7 {[%clk 0:00:23.2]} 34. Nxc6 {[%clk 0:01:04.2]}
34... a6 {[%clk 0:00:23.8]} 35. b4 {[%clk 0:01:01.6]} 35... Kf6 {[%clk
0:00:23.9]} 36. Kf2 {[%clk 0:01:00.3]} 36... h5 {[%clk 0:00:23.9]} 37. Ke3
{[%clk 0:00:53.7]} 37... Kg5 {[%clk 0:00:21.2]} 38. c4 {[%clk 0:00:46.2]} 38...
Kh4 {[%clk 0:00:19.7]} 39. Kf2 {[%clk 0:00:45.5]} 39... Kg5 {[%clk 0:00:19.6]}
40. a5 {[%clk 0:00:43.5]} 40... bxa5 {[%clk 0:00:19.4]} 41. Nxa5 {[%clk
0:00:43.3]} 41... Kf6 {[%clk 0:00:15.8]} 42. c5 {[%clk 0:00:43]} 42... Ke7
{[%clk 0:00:15.7]} 43. Nc6+ {[%clk 0:00:37.1]} 43... Ke8 {[%clk 0:00:12.4]} 44.
h4 {[%clk 0:00:36.5]} 44... Kf7 {[%clk 0:00:10.9]} 45. Ke3 {[%clk 0:00:36.3]}
45... Kf6 {[%clk 0:00:10.9]} 46. Kd3 {[%clk 0:00:31.1]} 46... g5 {[%clk
0:00:11.2]} 47. hxg5+ {[%clk 0:00:30.3]} 47... Kxg5 {[%clk 0:00:11.3]} 48. Nd8
{[%clk 0:00:28.6]} 48... Kf4 {[%clk 0:00:08.2]} 49. Ke2 {[%clk 0:00:26.2]} 49...
Kg3 {[%clk 0:00:08.3]} 50. Kf1 {[%clk 0:00:26.3]} 50... h4 {[%clk 0:00:09.2]}
51. Nxe6 {[%clk 0:00:25.9]} 51... h3 {[%clk 0:00:09.3]} 52. gxh3 {[%clk
0:00:25.7]} 52... Kxf3 {[%clk 0:00:08.8]} 53. c6 {[%clk 0:00:25.2]} 53... Nb6
{[%clk 0:00:08.5]} 54. Nc5 {[%clk 0:00:24.4]} 54... Ke3 {[%clk 0:00:04.3]} 55.
h4 {[%clk 0:00:22.7]} 55... Kf4 {[%clk 0:00:04.8]} 56. Kf2 {[%clk 0:00:19.3]}
56... Kg4 {[%clk 0:00:04.8]} 57. Nd7 {[%clk 0:00:19.2]} 57... Kxh4 {[%clk
0:00:03.5]} 58. Nxb6 {[%clk 0:00:18.9]} 58... Kg5 {[%clk 0:00:04.4]} 59. c7
{[%clk 0:00:19]} 1-0

[Event "*** Titled Tuesday Blitz"]
[Site "Chess.com"]
[Date "2020.05.12"]
[Round "2"]
[White "Filip_Covic"]
[Black "DonBroca"]
[Result "1-0"]
[WhiteElo "2457"]
[BlackElo "2228"]
[TimeControl "180+1"]
[EndTime "10:19:09 PDT"]
[Termination "Filip_Covic won by resignation"]

1. Nf3 {[%clk 0:03:00.9]} 1... g6 {[%clk 0:02:55.9]} 2. c4 {[%clk 0:03:00.3]}
2... Bg7 {[%clk 0:02:56.8]} 3. g3 {[%clk 0:03:00.5]} 3... Nf6 {[%clk 0:02:57.3]}
4. Bg2 {[%clk 0:03:00.9]} 4... O-O {[%clk 0:02:57.9]} 5. Nc3 {[%clk 0:03:01.1]}
5... d5 {[%clk 0:02:57.9]} 6. cxd5 {[%clk 0:02:59.2]} 6... Nxd5 {[%clk
0:02:58.4]} 7. O-O {[%clk 0:02:59.6]} 7... c5 {[%clk 0:02:52.5]} 8. d3 {[%clk
0:02:50.2]} 8... Nc6 {[%clk 0:02:48.2]} 9. Bd2 {[%clk 0:02:47.3]} 9... Nc7
{[%clk 0:02:44.1]} 10. Rc1 {[%clk 0:02:43.9]} 10... Rb8 {[%clk 0:02:38.1]} 11.
Na4 {[%clk 0:02:37.6]} 11... b6 {[%clk 0:02:37.2]} 12. b3 {[%clk 0:02:36.8]}
12... Bb7 {[%clk 0:02:34.4]} 13. Bc3 {[%clk 0:02:36.8]} 13... e5 {[%clk
0:02:31.2]} 14. e3 {[%clk 0:02:27.4]} 14... Ne6 {[%clk 0:02:26.7]} 15. Bb2
{[%clk 0:02:15.7]} 15... Qe7 {[%clk 0:02:14]} 16. Nc3 {[%clk 0:02:03]} 16...
Rbd8 {[%clk 0:02:10.5]} 17. Nd2 {[%clk 0:01:58.2]} 17... Rd7 {[%clk 0:02:03.9]}
18. Nd5 {[%clk 0:01:57.8]} 18... Qd8 {[%clk 0:02:00.8]} 19. e4 {[%clk
0:01:55.9]} 19... Ned4 {[%clk 0:01:42.9]} 20. Nc4 {[%clk 0:01:51.5]} 20... f6
{[%clk 0:01:23.8]} 21. f4 {[%clk 0:01:45.3]} 21... Ne7 {[%clk 0:01:15.4]} 22.
Nce3 {[%clk 0:01:42.1]} 22... Nxd5 {[%clk 0:01:09.4]} 23. Nxd5 {[%clk 0:01:43]}
23... Bxd5 {[%clk 0:01:06.3]} 24. exd5 {[%clk 0:01:43.9]} 24... f5 {[%clk
0:01:05.8]} 25. b4 {[%clk 0:01:19.5]} 25... Re8 {[%clk 0:00:45.4]} 26. bxc5
{[%clk 0:01:12.9]} 26... exf4 {[%clk 0:00:45.5]} 27. c6 {[%clk 0:01:03.4]} 27...
Rxd5 {[%clk 0:00:45.2]} 28. c7 {[%clk 0:00:42.2]} 28... Ne2+ {[%clk 0:00:20.4]}
29. Qxe2 {[%clk 0:00:35.2]} 29... Rxe2 {[%clk 0:00:19.5]} 30. Bxd5+ {[%clk
0:00:22.5]} 30... Qxd5 {[%clk 0:00:19.2]} 31. c8=Q+ {[%clk 0:00:22.9]} 31... Bf8
{[%clk 0:00:19.8]} 32. Qc4 {[%clk 0:00:18.2]} 32... Qxc4 {[%clk 0:00:17.6]} 33.
dxc4 {[%clk 0:00:15.4]} 33... Rxb2 {[%clk 0:00:17.4]} 34. gxf4 {[%clk
0:00:14.7]} 34... Bc5+ {[%clk 0:00:17.6]} 35. Kh1 {[%clk 0:00:14.7]} 35... Rxa2
{[%clk 0:00:17.8]} 36. Rcd1 {[%clk 0:00:11.6]} 36... Kg7 {[%clk 0:00:17.8]} 37.
Rd7+ {[%clk 0:00:11.5]} 37... Kh6 {[%clk 0:00:18.3]} 38. Re1 {[%clk 0:00:10.1]}
38... a5 {[%clk 0:00:18.4]} 39. Re8 {[%clk 0:00:09.6]} 39... Ra1+ {[%clk
0:00:18.8]} 40. Kg2 {[%clk 0:00:09.3]} 40... Ra2+ {[%clk 0:00:19.3]} 41. Kh3
{[%clk 0:00:08.8]} 41... Rxh2+ {[%clk 0:00:19.2]} 42. Kxh2 {[%clk 0:00:08.1]}
42... Kh5 {[%clk 0:00:18.2]} 43. Kh3 {[%clk 0:00:08.1]} 43... h6 {[%clk
0:00:16.9]} 44. Rh7 {[%clk 0:00:07.9]} 44... Bd6 {[%clk 0:00:15.2]} 45. Rd7
{[%clk 0:00:03.8]} 45... Bb4 {[%clk 0:00:13.8]} 46. Re6 {[%clk 0:00:04]} 46...
Ba3 {[%clk 0:00:12]} 47. Rg7 {[%clk 0:00:04.3]} 47... Bc1 {[%clk 0:00:12.2]} 48.
Rgxg6 {[%clk 0:00:04.4]} 48... Bxf4 {[%clk 0:00:12.3]} 49. Rxb6 {[%clk
0:00:04.9]} 49... a4 {[%clk 0:00:09.1]} 50. Ra6 {[%clk 0:00:05.3]} 50... Bg5
{[%clk 0:00:09.4]} 51. Rgc6 {[%clk 0:00:05.6]} 51... f4 {[%clk 0:00:10.3]} 52.
Rxa4 {[%clk 0:00:05.8]} 52... f3 {[%clk 0:00:11.2]} 53. Kg3 {[%clk 0:00:06.1]}
53... f2 {[%clk 0:00:12.1]} 54. Kxf2 {[%clk 0:00:06.4]} 54... Bh4+ {[%clk
0:00:13]} 55. Kf3 {[%clk 0:00:06.7]} 55... Bg5 {[%clk 0:00:13.9]} 56. Ra5 {[%clk
0:00:06.9]} 56... Kh4 {[%clk 0:00:13.5]} 57. Rxg5 {[%clk 0:00:07]} 57... hxg5
{[%clk 0:00:13.3]} 58. Rd6 {[%clk 0:00:07.3]} 1-0

[Event "*** Titled Tuesday Blitz"]
[Site "Chess.com"]
[Date "2020.05.12"]
[Round "2"]
[White "ZoltanChef"]
[Black "WPWPWP-2015"]
[Result "0-1"]
[WhiteElo "2141"]
[BlackElo "2413"]
[TimeControl "180+1"]
[EndTime "10:19:09 PDT"]
[Termination "WPWPWP-2015 won on time"]

1. e4 {[%clk 0:03:00.4]} 1... c5 {[%clk 0:02:59.4]} 2. Nf3 {[%clk 0:02:59.6]}
2... e6 {[%clk 0:02:58.9]} 3. b3 {[%clk 0:02:59.9]} 3... b6 {[%clk 0:02:58.1]}
4. Bb2 {[%clk 0:03:00.2]} 4... Bb7 {[%clk 0:02:58.7]} 5. Nc3 {[%clk 0:03:00.4]}
5... Nf6 {[%clk 0:02:58.2]} 6. e5 {[%clk 0:02:57.9]} 6... Nd5 {[%clk 0:02:58.1]}
7. Nxd5 {[%clk 0:02:57]} 7... Bxd5 {[%clk 0:02:57.6]} 8. c4 {[%clk 0:02:57.2]}
8... Bb7 {[%clk 0:02:55.2]} 9. Be2 {[%clk 0:02:55.1]} 9... Nc6 {[%clk
0:02:54.2]} 10. O-O {[%clk 0:02:54.3]} 10... Be7 {[%clk 0:02:50.1]} 11. d4
{[%clk 0:02:51.8]} 11... cxd4 {[%clk 0:02:49.9]} 12. Nxd4 {[%clk 0:02:52.6]}
12... Nxe5 {[%clk 0:02:43]} 13. Nxe6 {[%clk 0:02:40.2]} 13... dxe6 {[%clk
0:02:41.5]} 14. Bxe5 {[%clk 0:02:39.4]} 14... f6 {[%clk 0:02:32.4]} 15. Bc3
{[%clk 0:02:24.8]} 15... Qxd1 {[%clk 0:02:27.7]} 16. Rfxd1 {[%clk 0:02:22.2]}
16... Rd8 {[%clk 0:02:23.1]} 17. Rxd8+ {[%clk 0:02:20.9]} 17... Bxd8 {[%clk
0:02:05]} 18. Rd1 {[%clk 0:02:05.3]} 18... Be7 {[%clk 0:01:47.9]} 19. Bg4 {[%clk
0:01:28.5]} 19... Bc8 {[%clk 0:01:47]} 20. Bh5+ {[%clk 0:01:24.7]} 20... g6
{[%clk 0:01:45.9]} 21. Bf3 {[%clk 0:01:24.8]} 21... Kf7 {[%clk 0:01:40.5]} 22.
Bc6 {[%clk 0:01:22]} 22... g5 {[%clk 0:01:32.2]} 23. b4 {[%clk 0:01:20.8]} 23...
e5 {[%clk 0:01:27.9]} 24. a4 {[%clk 0:01:10.3]} 24... Be6 {[%clk 0:01:26.6]} 25.
Bd5 {[%clk 0:01:09.6]} 25... Rc8 {[%clk 0:01:24.9]} 26. Be1 {[%clk 0:00:59.6]}
26... Bxd5 {[%clk 0:01:05.8]} 27. cxd5 {[%clk 0:01:00.5]} 27... Bd6 {[%clk
0:01:05.7]} 28. Kf1 {[%clk 0:00:44.1]} 28... Rc2 {[%clk 0:01:02.8]} 29. a5
{[%clk 0:00:39.1]} 29... b5 {[%clk 0:01:01.4]} 30. f3 {[%clk 0:00:33.8]} 30...
a6 {[%clk 0:01:00.3]} 31. h3 {[%clk 0:00:32]} 31... h5 {[%clk 0:00:57.5]} 32.
Bd2 {[%clk 0:00:25]} 32... Rb2 {[%clk 0:00:52]} 33. Ke1 {[%clk 0:00:20.3]} 33...
Bxb4 {[%clk 0:00:39]} 34. Bxb4 {[%clk 0:00:15.2]} 34... Rxb4 {[%clk 0:00:39.9]}
35. d6 {[%clk 0:00:16.1]} 35... Rd4 {[%clk 0:00:33.5]} 36. d7 {[%clk 0:00:14.8]}
36... Ke7 {[%clk 0:00:31.3]} 37. Rc1 {[%clk 0:00:13.6]} 37... Kxd7 {[%clk
0:00:29.2]} 38. Rc2 {[%clk 0:00:07.5]} 38... h4 {[%clk 0:00:27.9]} 39. Ke2
{[%clk 0:00:04.4]} 39... Ra4 {[%clk 0:00:27]} 40. Rd2+ {[%clk 0:00:01.5]} 40...
Ke6 {[%clk 0:00:25.6]} 41. Rc2 {[%clk 0:00:01.9]} 41... Kd5 {[%clk 0:00:24.1]}
42. Rd2+ {[%clk 0:00:02.1]} 42... Kc5 {[%clk 0:00:19.8]} 43. Rc2+ {[%clk
0:00:02.5]} 43... Rc4 {[%clk 0:00:19.4]} 44. Rd2 {[%clk 0:00:03]} 44... b4
{[%clk 0:00:18]} 45. Ke3 {[%clk 0:00:01.1]} 45... b3 {[%clk 0:00:16.6]} 46. Rb2
{[%clk 0:00:00.9]} 46... Kb4 {[%clk 0:00:16.4]} 47. Kd3 {[%clk 0:00:00.8]} 47...
Rd4+ {[%clk 0:00:16.6]} 0-1

[Event "*** Titled Tuesday Blitz"]
[Site "Chess.com"]
[Date "2020.05.12"]
[Round "2"]
[White "BaMBoMaTTo"]
[Black "JozefKneht"]
[Result "1/2-1/2"]
[WhiteElo "2635"]
[BlackElo "2376"]
[TimeControl "180+1"]
[EndTime "10:19:17 PDT"]
[Termination "Game drawn by repetition"]

1. d4 {[%clk 0:03:00.5]} 1... d5 {[%clk 0:02:59.2]} 2. c4 {[%clk 0:03:00.7]}
2... e6 {[%clk 0:02:59.3]} 3. Nc3 {[%clk 0:03:00.3]} 3... Nf6 {[%clk 0:02:59.9]}
4. cxd5 {[%clk 0:03:00.5]} 4... exd5 {[%clk 0:02:59.4]} 5. Bg5 {[%clk
0:03:00.9]} 5... Be7 {[%clk 0:03:00]} 6. e3 {[%clk 0:03:01.4]} 6... O-O {[%clk
0:03:00.6]} 7. Bd3 {[%clk 0:03:01]} 7... c6 {[%clk 0:03:01.2]} 8. h3 {[%clk
0:02:59.9]} 8... Nbd7 {[%clk 0:03:01.7]} 9. Nf3 {[%clk 0:02:59.7]} 9... Re8
{[%clk 0:03:02.6]} 10. O-O {[%clk 0:02:59.7]} 10... Nf8 {[%clk 0:03:03.3]} 11.
Ne5 {[%clk 0:02:58.6]} 11... N6d7 {[%clk 0:03:01]} 12. Bxe7 {[%clk 0:02:56.4]}
12... Qxe7 {[%clk 0:03:01.9]} 13. Nf3 {[%clk 0:02:53.2]} 13... Nf6 {[%clk
0:02:57.2]} 14. Qc2 {[%clk 0:02:45.1]} 14... Be6 {[%clk 0:02:57.1]} 15. Rab1
{[%clk 0:02:37.3]} 15... h6 {[%clk 0:02:48.5]} 16. b4 {[%clk 0:02:37]} 16... a6
{[%clk 0:02:48.2]} 17. a4 {[%clk 0:02:36.8]} 17... N8d7 {[%clk 0:02:48.5]} 18.
b5 {[%clk 0:02:34.8]} 18... axb5 {[%clk 0:02:48.6]} 19. axb5 {[%clk 0:02:35.7]}
19... c5 {[%clk 0:02:48.9]} 20. b6 {[%clk 0:02:24.6]} 20... Rec8 {[%clk
0:02:25.3]} 21. Rfc1 {[%clk 0:01:51.3]} 21... Rc6 {[%clk 0:01:55.7]} 22. dxc5
{[%clk 0:01:50.1]} 22... Qxc5 {[%clk 0:01:50.3]} 23. Qd1 {[%clk 0:01:18.7]}
23... Qe7 {[%clk 0:01:24.8]} 24. Na4 {[%clk 0:01:02.4]} 24... Rxc1 {[%clk
0:01:21.5]} 25. Rxc1 {[%clk 0:01:02.5]} 25... Qd6 {[%clk 0:01:22.1]} 26. Nd4
{[%clk 0:00:56.4]} 26... Nxb6 {[%clk 0:01:17.3]} 27. Nb5 {[%clk 0:00:56.7]}
27... Qd8 {[%clk 0:01:16.7]} 28. Nc5 {[%clk 0:00:49.8]} 28... Rb8 {[%clk
0:00:57.5]} 29. Nd4 {[%clk 0:00:35.3]} 29... Qe7 {[%clk 0:00:53.3]} 30. Qb3
{[%clk 0:00:32.2]} 30... Nbd7 {[%clk 0:00:48.7]} 31. Ncxe6 {[%clk 0:00:29.8]}
31... fxe6 {[%clk 0:00:48]} 32. Rc7 {[%clk 0:00:30.2]} 32... b6 {[%clk
0:00:44.5]} 33. Nc6 {[%clk 0:00:29.8]} 33... Qd6 {[%clk 0:00:41.3]} 34. Rxd7
{[%clk 0:00:19]} 34... Nxd7 {[%clk 0:00:40]} 35. Nxb8 {[%clk 0:00:19.3]} 35...
Nxb8 {[%clk 0:00:37.1]} 36. e4 {[%clk 0:00:19.7]} 36... Nd7 {[%clk 0:00:36.5]}
37. exd5 {[%clk 0:00:19.7]} 37... exd5 {[%clk 0:00:36]} 38. Bc2 {[%clk
0:00:17.1]} 38... Nf6 {[%clk 0:00:35.5]} 39. Qd3 {[%clk 0:00:17.1]} 39... Kf8
{[%clk 0:00:34.7]} 40. Qf5 {[%clk 0:00:17.3]} 40... Kf7 {[%clk 0:00:29.6]} 41.
Bb3 {[%clk 0:00:17.4]} 41... b5 {[%clk 0:00:29.2]} 42. g3 {[%clk 0:00:16.8]}
42... b4 {[%clk 0:00:29.2]} 43. h4 {[%clk 0:00:17]} 43... Qe6 {[%clk 0:00:29.2]}
44. Qd3 {[%clk 0:00:16.5]} 44... Qe1+ {[%clk 0:00:24.8]} 45. Kg2 {[%clk
0:00:16.8]} 45... Qe5 {[%clk 0:00:23.7]} 46. Qb5 {[%clk 0:00:15.9]} 46... Qe4+
{[%clk 0:00:22.3]} 47. Kg1 {[%clk 0:00:15.5]} 47... h5 {[%clk 0:00:20.6]} 48.
Qb7+ {[%clk 0:00:15.2]} 48... Kg6 {[%clk 0:00:21.2]} 49. Qc6 {[%clk 0:00:15.3]}
49... Kh6 {[%clk 0:00:21.3]} 50. Bc2 {[%clk 0:00:15.4]} 50... Qe1+ {[%clk
0:00:20.8]} 51. Kg2 {[%clk 0:00:16]} 51... Qd2 {[%clk 0:00:21.3]} 52. Qc8 {[%clk
0:00:15.2]} 52... Ne4 {[%clk 0:00:20.7]} 53. Qh8+ {[%clk 0:00:13.9]} 53... Kg6
{[%clk 0:00:20.2]} 54. Qe8+ {[%clk 0:00:14.3]} 54... Kh6 {[%clk 0:00:20.4]} 55.
Bxe4 {[%clk 0:00:14.5]} 55... dxe4 {[%clk 0:00:20.5]} 56. Qxe4 {[%clk
0:00:15.4]} 56... Qc3 {[%clk 0:00:20.5]} 57. Qe6+ {[%clk 0:00:15.6]} 57... g6
{[%clk 0:00:19.8]} 58. Qe8 {[%clk 0:00:14.3]} 58... Kg7 {[%clk 0:00:19.4]} 59.
Qe7+ {[%clk 0:00:14.4]} 59... Kg8 {[%clk 0:00:18.8]} 60. Qe8+ {[%clk 0:00:14.5]}
60... Kg7 {[%clk 0:00:19.4]} 61. Qe7+ {[%clk 0:00:14.9]} 61... Kg8 {[%clk
0:00:19.4]} 62. Qe8+ {[%clk 0:00:15]} 62... Kg7 {[%clk 0:00:19.7]} 1/2-1/2